bitfinex/quotes_BTCUSD_20250711
["timestamp","ask_amount","ask_price","bid_price","bid_amount"]
[1752245153453,0.00013297,117970.0,117960.0,0.87436781]
[1752245154323,4.39e-06,117970.0,117960.0,0.87436781]
[1752245154567,0.02373075,117990.0,117980.0,0.23537205]
[1752245154779,0.02373047,117990.0,117980.0,0.25322721]
[1752245154946,0.03220554,117990.0,117980.0,0.27017858]
[1752245155149,0.03220547,117990.0,117980.0,0.27319858]
[1752245155381,0.20171172,117990.0,117980.0,0.24777142]
[1752245155597,0.21018701,117990.0,117980.0,0.26472322]
[1752245155796,0.21018701,117990.0,117980.0,0.25624736]
[1752245156011,0.20340626,117990.0,117980.0,0.24877142]
[1752245156233,0.18645633,117990.0,117980.0,0.07077516]
[1752245156449,0.18645633,117990.0,117980.0,0.01684516]
[1752245156450,0.81709085,117990.0,117980.0,0.01684516]
[1752245156880,1.18119085,117990.0,117980.0,0.01684516]
[1752245157291,1.18119085,117990.0,117980.0,0.01584516]
[1752245157520,0.68105118,117990.0,117980.0,0.01584516]
[1752245157726,0.65695118,117990.0,117980.0,0.01584516]
[1752245158154,1.15709085,117990.0,117980.0,0.01584516]
[1752245158362,0.65695118,117990.0,117980.0,0.01584516]
[1752245158579,0.65795118,117990.0,117980.0,0.01584516]
[1752245158827,0.65577118,117990.0,117980.0,0.01584516]
[1752245159050,0.66121625,117990.0,117980.0,0.07267516]
[1752245159280,0.13676,117990.0,117980.0,0.26762258]
[1752245159554,0.15370972,117990.0,117980.0,0.2760983]
[1752245159767,0.15270972,117990.0,117980.0,0.2760983]
[1752245159984,0.32869076,117990.0,117980.0,0.07267516]
[1752245160199,0.32021626,117990.0,117980.0,0.07267516]
[1752245160901,0.32021626,117990.0,117980.0,0.07367516]
[1752245161541,0.32224626,117990.0,117980.0,0.01684516]
[1752245161773,0.96049586,117990.0,117980.0,0.01684516]
[1752245162470,0.93879586,117990.0,117980.0,0.01584516]
[1752245162921,0.94079586,117990.0,117980.0,0.01584516]
[1752245163400,0.20344024,117970.0,117960.0,0.05534459]
[1752245163619,0.30325462,117970.0,117960.0,0.07319509]
[1752245163849,0.31173113,117970.0,117960.0,0.07319509]
[1752245164277,1.1570808,117970.0,117960.0,0.01796509]
[1752245164512,0.65694113,117970.0,117960.0,0.01796509]
[1752245165945,0.65694113,117970.0,117960.0,0.01896509]
[1752245166607,0.65694113,117970.0,117960.0,0.01796509]
[1752245166833,0.52004113,117970.0,117960.0,0.01997509]
[1752245167070,0.65273113,117970.0,117960.0,0.04909509]
[1752245167359,0.65476113,117970.0,117960.0,0.04607509]
[1752245167784,0.65476113,117970.0,117960.0,0.01997509]
[1752245168419,0.65576113,117970.0,117960.0,0.01997509]
[1752245168861,0.65576113,117970.0,117960.0,0.04557509]
[1752245171216,0.65576113,117970.0,117960.0,0.01997509]
[1752245171987,0.65576113,117970.0,117960.0,0.01796509]
[1752245172200,0.74178855,117970.0,117960.0,0.01796509]
[1752245172404,0.65894113,117970.0,117960.0,0.01796509]
[1752245175023,0.52522113,117970.0,117960.0,0.01796509]
[1752245175234,0.3504763,117970.0,117960.0,0.20914408]
[1752245175459,0.1526323,117970.0,117960.0,0.24132145]
[1752245175661,0.0189523,117970.0,117960.0,0.26675285]
[1752245175881,0.1526323,117970.0,117960.0,0.26675285]
[1752245176090,0.16958525,117970.0,117960.0,0.25827598]
[1752245176305,0.33711987,117970.0,117960.0,0.06329509]
[1752245176536,0.33711987,117970.0,117960.0,0.07177253]
[1752245176775,0.33711987,117970.0,117960.0,0.07277253]
[1752245177004,0.3455966,117970.0,117960.0,0.07277253]
[1752245177221,0.16758525,117970.0,117960.0,0.24232152]
[1752245177446,0.33711987,117970.0,117960.0,0.07277253]
[1752245177694,0.3455966,117970.0,117960.0,0.07277253]
[1752245177960,0.17606198,117970.0,117960.0,0.0812499]
[1752245178260,0.15910867,117970.0,117960.0,0.25079875]
[1752245178519,0.16758518,117970.0,117960.0,0.25927605]
[1752245178761,0.15910867,117970.0,117960.0,0.26775314]
[1752245178993,0.15910867,117970.0,117960.0,0.25927605]
[1752245179222,0.3371203,117970.0,117960.0,0.06429509]
[1752245179911,0.15063259,117970.0,117960.0,0.25079883]
[1752245180171,0.1591091,117970.0,117960.0,0.25079883]
[1752245180401,0.15063259,117970.0,117960.0,0.25927584]
[1752245180631,0.1591091,117970.0,117960.0,0.2507989]
[1752245181097,0.1591091,117970.0,117960.0,0.06429531]
[1752245181323,0.33712037,117970.0,117960.0,0.06429531]
[1752245182010,0.32016778,117970.0,117960.0,0.06429531]
[1752245182223,0.32016778,117970.0,117960.0,0.04059531]
[1752245182450,0.32016778,117970.0,117960.0,0.05769531]
[1752245182995,0.32213778,117970.0,117960.0,0.04059531]
[1752245183210,0.31366127,117970.0,117960.0,0.03757531]
[1752245183399,0.52648491,117980.0,117970.0,0.0157]
[1752245183648,0.66012491,117980.0,117970.0,0.03667072]
[1752245184525,0.25493582,117990.0,117980.0,0.02477601]
[1752245184526,0.0169495,117990.0,117980.0,0.02477601]
[1752245184747,0.32507597,117990.0,117980.0,0.03214072]
[1752245184966,0.32507597,117990.0,117980.0,0.01584072]
[1752245185387,0.31490648,117990.0,117980.0,0.01584072]
[1752245185594,0.32338141,117990.0,117980.0,0.01584072]
[1752245186258,0.32438141,117990.0,117980.0,0.01584072]
[1752245186510,0.82452108,117990.0,117980.0,0.01584072]
[1752245186725,1.28315101,117990.0,117980.0,0.01584072]
[1752245186940,6.28315101,117990.0,117980.0,0.01584072]
[1752245187153,6.30859001,117990.0,117980.0,0.01584072]
[1752245187338,6.7306438,117990.0,117980.0,0.01584072]
[1752245187841,0.22048757,117970.0,117960.0,0.00212459]
[1752245188055,1.27969717,117970.0,117960.0,0.00212459]
[1752245188270,6.30673096,117970.0,117960.0,0.00212459]
[1752245188477,6.33029452,117970.0,117960.0,0.00212459]
[1752245189558,6.33329452,117970.0,117960.0,0.00212459]
[1752245189766,6.15403717,117970.0,117960.0,0.00212459]
[1752245189968,5.7875375,117970.0,117960.0,0.00212459]
[1752245190413,5.7905375,117970.0,117960.0,0.00212459]
[1752245190830,6.3731071,117970.0,117960.0,0.00212459]
[1752245191251,6.3701071,117970.0,117960.0,0.00212459]
[1752245191683,6.3711071,117970.0,117960.0,0.00212459]
[1752245192125,5.7673375,117970.0,117960.0,0.00212459]
[1752245192337,5.7693375,117970.0,117960.0,0.00212459]
[1752245192544,5.7703375,117970.0,117960.0,0.00212459]
[1752245193200,6.28467717,117970.0,117960.0,0.00212459]
[1752245193618,6.28667717,117970.0,117960.0,0.00212459]
[1752245193828,6.3721071,117970.0,117960.0,0.00212459]
[1752245194033,6.3975481,117970.0,117960.0,0.00212459]
[1752245194250,0.56011919,117950.0,117940.0,0.002]
[1752245194510,1.27932879,117950.0,117940.0,0.00214975]
[1752245194742,1.28129879,117950.0,117940.0,0.00214975]
[1752245194956,1.28430879,117950.0,117940.0,0.00214975]
[1752245195586,1.33189773,117950.0,117940.0,0.00214975]
[1752245196043,1.35846129,117950.0,117940.0,0.00214975]
[1752245196456,6.35846129,117950.0,117940.0,0.00214975]
[1752245196672,6.36146129,117950.0,117940.0,0.00214975]
[1752245197088,6.38066129,117950.0,117940.0,0.00214975]
[1752245197723,6.24702129,117950.0,117940.0,0.00214975]
[1752245198164,6.33500394,117950.0,117940.0,0.00214975]
[1752245199957,6.33500394,117950.0,117940.0,0.01797198]
[1752245200399,1.33500394,117950.0,117940.0,0.01797198]
[1752245200623,6.33500394,117950.0,117940.0,0.01797198]
[1752245201277,5.70126427,117950.0,117940.0,0.01797198]
[1752245201488,6.31800394,117950.0,117940.0,0.01797198]
[1752245202173,6.16780394,117950.0,117940.0,0.01797198]
[1752245202382,5.79825427,117950.0,117940.0,0.01797198]
[1752245202805,5.80126427,117950.0,117940.0,0.01797198]
[1752245203026,5.66465427,117950.0,117940.0,0.01993241]
[1752245203270,5.81756427,117950.0,117940.0,0.01796241]
[1752245203931,6.33370394,117950.0,117940.0,0.01796241]
[1752245208550,6.31770394,117950.0,117940.0,0.01796241]
[1752245209603,6.31270394,117950.0,117940.0,0.01796241]
[1752245209801,6.32900394,117950.0,117940.0,0.01796241]
[1752245210008,6.35105773,117950.0,117940.0,0.01796241]
[1752245210804,5.85091806,117950.0,117940.0,0.01796241]
[1752245210954,6.35105773,117950.0,117940.0,0.01796241]
[1752245211173,6.32552258,117950.0,117940.0,0.01796241]
[1752245212209,6.41095251,117950.0,117940.0,0.01796241]
[1752245212543,6.34908614,117950.0,117940.0,0.01796854]
[1752245212952,6.37469338,117950.0,117940.0,0.0179691]
[1752245213085,6.35112982,117950.0,117940.0,0.0179691]
[1752245214461,1.37469338,117950.0,117940.0,0.0179691]
[1752245214677,6.46012331,117950.0,117940.0,0.0179691]
[1752245215122,6.24109338,117950.0,117940.0,0.0179691]
[1752245215334,6.31273603,117950.0,117940.0,0.0179691]
[1752245216169,5.81259636,117950.0,117940.0,0.0179691]
[1752245216407,5.67903636,117950.0,117940.0,0.0179691]
[1752245216623,5.80709093,117950.0,117940.0,0.0179691]
[1752245217252,5.84316369,117950.0,117940.0,0.0179691]
[1752245217463,5.64491369,117950.0,117940.0,0.0200991]
[1752245217672,5.64491369,117950.0,117940.0,0.0572491]
[1752245217673,0.35107376,117950.0,117940.0,0.0572491]
[1752245218097,0.17071582,117950.0,117940.0,0.05729106]
[1752245218360,0.006,117950.0,117940.0,0.2523046]
[1752245218582,0.15051525,117950.0,117940.0,0.20962629]
[1752245218812,0.15899313,117950.0,117940.0,0.21810489]
[1752245219030,0.15251525,117950.0,117940.0,0.25120489]
[1752245219243,0.16099313,117950.0,117940.0,0.25120489]
[1752245219458,0.16947115,117950.0,117940.0,0.24272629]
[1752245219668,0.15351525,117950.0,117940.0,0.24272629]
[1752245219884,0.1609932,117950.0,117940.0,0.25120489]
[1752245220106,0.15251525,117950.0,117940.0,0.26168334]
[1752245220271,0.15051518,117950.0,117940.0,0.27016172]
[1752245220499,0.167471,117950.0,117940.0,0.23624762]
[1752245220704,0.167471,117950.0,117940.0,0.23824762]
[1752245220916,0.17594916,117950.0,117940.0,0.23824762]
[1752245221161,0.32855735,117950.0,117940.0,0.06019106]
[1752245221616,0.15051539,117950.0,117940.0,0.2467265]
[1752245221831,0.15899334,117950.0,117940.0,0.25320517]
[1752245222043,0.16747143,117950.0,117940.0,0.25320524]
[1752245222250,0.16747143,117950.0,117940.0,0.25520524]
[1752245222456,0.16747143,117950.0,117940.0,0.2467265]
[1752245222684,0.32007941,117950.0,117940.0,0.06019106]
[1752245222891,0.31160146,117950.0,117940.0,0.06019106]
[1752245223103,0.32007934,117950.0,117940.0,0.05819106]
[1752245223325,0.15051597,117950.0,117940.0,0.22776881]
[1752245223543,0.01695546,117950.0,117940.0,0.24672629]
[1752245223749,0.16743143,117950.0,117940.0,0.23824769]
[1752245223963,0.16743143,117950.0,117940.0,0.2467265]
[1752245224177,0.15047518,117950.0,117940.0,0.272662]
[1752245224385,0.16743086,117950.0,117940.0,0.2472265]
[1752245224600,0.16743086,117950.0,117940.0,0.25570524]
[1752245224839,0.16743086,117950.0,117940.0,0.26418384]
[1752245225015,0.33699473,117950.0,117940.0,0.06069106]
[1752245225267,0.15895334,117950.0,117940.0,0.23874755]
[1752245225473,0.15895327,117950.0,117940.0,0.24722607]
[1752245225678,0.12822134,117950.0,117940.0,0.24722607]
[1752245225904,0.52762708,117960.0,117950.0,0.21274153]
[1752245226115,0.83917301,117960.0,117950.0,0.05269131]
[1752245226292,0.33917301,117960.0,117950.0,0.05564131]
[1752245226603,0.330696,117960.0,117950.0,0.05564131]
[1752245226818,0.02762701,117960.0,117950.0,0.22520468]
[1752245227030,0.16114672,117960.0,117950.0,0.22520468]
[1752245227240,0.33917301,117960.0,117950.0,0.05664131]
[1752245227462,0.33917301,117960.0,117950.0,0.06511947]
[1752245227675,0.33917301,117960.0,117950.0,0.05664131]
[1752245228658,0.330696,117960.0,117950.0,0.05664131]
[1752245231758,0.32437877,117960.0,117950.0,0.03426131]
[1752245232179,0.32437877,117960.0,117950.0,0.03639131]
[1752245232799,0.32221877,117960.0,117950.0,0.03934131]
[1752245233010,0.32217877,117960.0,117950.0,0.05674131]
[1752245233417,0.01914957,117960.0,117950.0,0.22630468]
[1752245233622,0.15089421,117960.0,117950.0,0.24326065]
[1752245233821,0.15039381,117960.0,117950.0,0.24326072]
[1752245234062,0.52648838,117970.0,117960.0,0.0161]
[1752245234292,0.65992838,117970.0,117960.0,0.05149131]
[1752245234493,0.65992838,117970.0,117960.0,0.05444131]
[1752245234898,0.67081756,117970.0,117960.0,0.05444131]
[1752245235110,0.66234112,117970.0,117960.0,0.05444131]
[1752245236202,0.66334112,117970.0,117960.0,0.05444131]
[1752245237287,0.66234112,117970.0,117960.0,0.05544131]
[1752245237930,0.66234112,117970.0,117960.0,0.03804131]
[1752245238744,0.66438112,117970.0,117960.0,0.03509131]
[1752245238955,0.66438112,117970.0,117960.0,0.03504181]
[1752245239190,0.66438112,117970.0,117960.0,0.01894181]
[1752245239616,0.66739112,117970.0,117960.0,0.01681181]
[1752245240511,0.66739112,117970.0,117960.0,0.01581181]
[1752245240756,0.66839112,117970.0,117960.0,0.01581181]
[1752245240986,1.18493079,117970.0,117960.0,0.01581181]
[1752245241222,1.20333079,117970.0,117960.0,0.01581181]
[1752245241887,1.20329079,117970.0,117960.0,0.01581181]
[1752245242112,0.70315112,117970.0,117960.0,0.01581181]
[1752245242753,0.68575112,117970.0,117960.0,0.01581181]
[1752245242964,0.66634112,117970.0,117960.0,0.01787181]
[1752245243387,0.53294112,117970.0,117960.0,0.01581181]
[1752245243719,0.66935112,117970.0,117960.0,0.01581181]
[1752245244010,0.66735112,117970.0,117960.0,0.01581181]
[1752245244418,0.66735112,117970.0,117960.0,0.01681181]
[1752245245267,0.53094112,117970.0,117960.0,0.01887181]
[1752245245479,0.65382447,117970.0,117960.0,0.05540181]
[1752245246592,0.65586447,117970.0,117960.0,0.03547181]
[1752245247022,0.65887447,117970.0,117960.0,0.01681181]
[1752245247263,1.04281414,117970.0,117960.0,0.01681181]
[1752245247518,1.26160407,117970.0,117960.0,0.01681181]
[1752245247752,1.27830407,117970.0,117960.0,0.01681181]
[1752245248242,1.27930407,117970.0,117960.0,0.01681181]
[1752245248713,6.27930407,117970.0,117960.0,0.01681181]
[1752245249180,6.30319448,117970.0,117960.0,0.01581181]
[1752245249439,6.30419448,117970.0,117960.0,0.01581181]
[1752245249689,5.6468044,117970.0,117960.0,0.01581181]
[1752245249939,0.7432544,117970.0,117960.0,0.01581181]
[1752245250790,0.7462644,117970.0,117960.0,0.01581181]
[1752245251002,0.7635644,117970.0,117960.0,0.01581181]
[1752245252475,1.26370407,117970.0,117960.0,0.01581181]
[1752245253024,0.7635644,117970.0,117960.0,0.01581181]
[1752245253251,0.51802629,117960.0,117950.0,0.0166]
[1752245253454,0.65138629,117960.0,117950.0,0.03449967]
[1752245253848,0.65342629,117960.0,117950.0,0.03449967]
[1752245255711,0.65643629,117960.0,117950.0,0.01583967]
[1752245255917,1.25900589,117960.0,117950.0,0.01583967]
[1752245256147,0.75886622,117960.0,117950.0,0.01583967]
[1752245256390,0.75886622,117960.0,117950.0,0.01683967]
[1752245256608,0.62550622,117960.0,117950.0,0.01683967]
[1752245256791,0.60850622,117960.0,117950.0,0.01683967]
[1752245257021,0.74182622,117960.0,117950.0,0.01587967]
[1752245257461,0.74282622,117960.0,117950.0,0.01587967]
[1752245259452,0.60950622,117960.0,117950.0,0.01587967]
[1752245260991,0.60649622,117960.0,117950.0,0.01793967]
[1752245261328,0.60749622,117960.0,117950.0,0.01793967]
[1752245261528,0.74081622,117960.0,117950.0,0.01793967]
[1752245263294,0.74081622,117960.0,117950.0,0.01794434]
[1752245264853,0.74382622,117960.0,117950.0,0.01588434]
[1752245265273,0.75982622,117960.0,117950.0,0.01588434]
[1752245265689,0.78180622,117960.0,117950.0,0.01588434]
[1752245266061,0.76580622,117960.0,117950.0,0.01588434]
[1752245266721,0.76580622,117960.0,117950.0,0.03554434]
[1752245266722,0.62947622,117960.0,117950.0,0.03554434]
[1752245266935,0.76275622,117960.0,117950.0,0.03859434]
[1752245267142,0.74077622,117960.0,117950.0,0.03859434]
[1752245268187,0.74077622,117960.0,117950.0,0.03554434]
[1752245270984,0.74391622,117960.0,117950.0,0.03554434]
[1752245271195,0.74391622,117960.0,117950.0,0.01588434]
[1752245271401,1.2562006,117960.0,117950.0,0.01588434]
[1752245271829,1.2789006,117960.0,117950.0,0.01588434]
[1752245272871,1.2737206,117960.0,117950.0,0.01588434]
[1752245273503,1.2737206,117960.0,117950.0,0.03328434]
[1752245274361,1.2510206,117960.0,117950.0,0.01588696]
[1752245274955,1.2705706,117960.0,117950.0,0.01588696]
[1752245275721,1.2878706,117960.0,117950.0,0.01588696]
[1752245275951,1.3043706,117960.0,117950.0,0.01588696]
[1752245276159,6.84054539,117960.0,117950.0,0.01588696]
[1752245277868,6.08731618,117950.0,117940.0,0.00214975]
[1752245278075,6.08731618,117950.0,117940.0,0.01007626]
[1752245278076,6.29750809,117950.0,117940.0,0.01007626]
[1752245278501,6.30598611,117950.0,117940.0,0.01007626]
[1752245278723,6.32954967,117950.0,117940.0,0.01007626]
[1752245278941,6.32954967,117950.0,117940.0,0.00214975]
[1752245279148,6.31785827,117950.0,117940.0,0.00214975]
[1752245279589,6.29429471,117950.0,117940.0,0.00214975]
[1752245279820,6.37972464,117950.0,117940.0,0.00214975]
[1752245280027,6.4032882,117950.0,117940.0,0.00214975]
[1752245280659,5.63657132,117950.0,117940.0,0.00214975]
[1752245280865,6.2704043,117950.0,117940.0,0.00214975]
[1752245281288,6.1371643,117950.0,117940.0,0.00214975]
[1752245281505,0.60347132,117950.0,117940.0,0.01824975]
[1752245281776,0.65128139,117950.0,117940.0,0.03574975]
[1752245282625,0.65228139,117950.0,117940.0,0.03574975]
[1752245282843,0.65128139,117950.0,117940.0,0.03574975]
[1752245283069,0.65228139,117950.0,117940.0,0.03574975]
[1752245283485,0.65128139,117950.0,117940.0,0.03574975]
[1752245283902,0.65128139,117950.0,117940.0,0.03774975]
[1752245285543,0.65128139,117950.0,117940.0,0.03574975]
[1752245286337,0.65228139,117950.0,117940.0,0.03578975]
[1752245286776,0.65228139,117950.0,117940.0,0.01828975]
[1752245287202,0.65228139,117950.0,117940.0,0.03428975]
[1752245287203,0.52751934,117950.0,117940.0,0.03428975]
[1752245287416,0.52751934,117950.0,117940.0,0.53488273]
[1752245287621,0.01795561,117950.0,117940.0,0.53488273]
[1752245287822,0.001,117950.0,117940.0,0.73837501]
[1752245288027,0.14167694,117960.0,117950.0,0.21044146]
[1752245288253,0.33665776,117960.0,117950.0,0.53299298]
[1752245288456,0.33665776,117960.0,117950.0,0.0324]
[1752245288867,0.15863126,117960.0,117950.0,0.20196337]
[1752245289069,0.33665762,117960.0,117950.0,0.0324]
[1752245289271,0.32818068,117960.0,117950.0,0.0324]
[1752245289507,0.19737935,117970.0,117960.0,0.0324]
[1752245289719,0.66816401,117970.0,117960.0,0.54880877]
[1752245289923,0.32816436,117970.0,117960.0,0.54880877]
[1752245290126,0.32816436,117970.0,117960.0,0.04821579]
[1752245290625,0.65968785,117970.0,117960.0,0.04821579]
[1752245291068,0.65968785,117970.0,117960.0,0.04921579]
[1752245291256,0.65121127,117970.0,117960.0,0.04921579]
[1752245291463,0.52802173,117970.0,117960.0,0.05021579]
[1752245292192,0.00847622,117970.0,117960.0,0.7288352]
[1752245292393,0.15015266,117970.0,117960.0,0.7288352]
[1752245292602,0.15862931,117970.0,117960.0,0.55080877]
[1752245292741,0.15862931,117970.0,117960.0,0.55928621]
[1752245292938,0.16026941,117970.0,117960.0,0.82274229]
[1752245293146,0.16874585,117970.0,117960.0,0.82274236]
[1752245293367,0.00847622,117970.0,117960.0,0.82274236]
[1752245293533,0.01695252,117970.0,117960.0,0.83121952]
[1752245293962,0.01695223,117970.0,117960.0,0.84119653]
[1752245294309,0.48320914,117980.0,117970.0,0.0334]
[1752245294545,0.50863573,117980.0,117970.0,0.04921579]
[1752245294691,0.51711159,117980.0,117970.0,0.04921579]
[1752245294892,0.50863573,117980.0,117970.0,0.04921579]
[1752245295121,0.51711167,117980.0,117970.0,0.04921579]
[1752245295324,0.52558753,117980.0,117970.0,0.04921579]
[1752245295712,0.68663242,117980.0,117970.0,0.04921579]
[1752245295911,0.67815691,117980.0,117970.0,0.04921579]
[1752245296337,0.37543666,117980.0,117970.0,0.04921579]
[1752245296540,0.37543666,117980.0,117970.0,0.05769252]
[1752245296541,0.15164465,117980.0,117970.0,0.05769252]
[1752245296758,0.16012037,117980.0,117970.0,0.05769252]
[1752245296995,0.15164465,117980.0,117970.0,0.24418016]
[1752245297195,0.01000914,117980.0,117970.0,0.24418016]
[1752245297371,0.0184845,117980.0,117970.0,0.25265638]
[1752245297577,0.15011087,117980.0,117970.0,0.24418016]
[1752245297779,0.15858652,117980.0,117970.0,0.23570372]
[1752245297951,0.15858652,117980.0,117970.0,0.25265667]
[1752245298165,0.15011087,117980.0,117970.0,0.25265667]
[1752245298356,0.16024922,117980.0,117970.0,0.26113304]
[1752245298556,0.16024922,117980.0,117970.0,0.24417994]
[1752245298759,0.17720052,117980.0,117970.0,0.22722699]
[1752245298995,0.17720052,117980.0,117970.0,0.21875041]
[1752245299154,0.04404052,117980.0,117970.0,0.23866403]
[1752245299534,0.17720052,117980.0,117970.0,0.23866403]
[1752245299735,0.17720052,117980.0,117970.0,0.23018745]
[1752245299937,0.17720052,117980.0,117970.0,0.23866396]
[1752245300111,0.17720052,117980.0,117970.0,0.23018745]
[1752245300316,0.17720052,117980.0,117970.0,0.23866403]
[1752245300729,0.1687248,117980.0,117970.0,0.25561698]
[1752245300911,0.17720052,117980.0,117970.0,0.24714054]
[1752245301117,0.17720052,117980.0,117970.0,0.23018745]
[1752245301671,0.17720052,117980.0,117970.0,0.24066403]
[1752245301838,0.17720052,117980.0,117970.0,0.24914054]
[1752245302069,0.33824584,117980.0,117970.0,0.05417618]
[1752245302271,0.34672185,117980.0,117970.0,0.05417618]
[1752245302498,0.15177371,117980.0,117970.0,0.2491404]
[1752245302704,0.16024922,117980.0,117970.0,0.24914047]
[1752245302909,0.35894957,117990.0,117980.0,0.16952025]
[1752245303118,0.50901965,117990.0,117980.0,0.04787618]
[1752245303323,0.5005445,117990.0,117980.0,0.04787618]
[1752245303528,0.5005445,117990.0,117980.0,0.21739643]
[1752245303741,0.01919299,117990.0,117980.0,0.2428241]
[1752245303946,0.16078778,117990.0,117980.0,0.24282424]
[1752245304145,0.16931262,117990.0,117980.0,0.23434838]
[1752245304591,0.17778769,117990.0,117980.0,0.22587244]
[1752245304786,0.18626298,117990.0,117980.0,0.04787618]
[1752245304988,0.35576887,117990.0,117980.0,0.04787618]
[1752245305191,0.35576887,117990.0,117980.0,0.04887618]
[1752245305558,0.35576887,117990.0,117980.0,0.04987618]
[1752245306371,0.34729408,117990.0,117980.0,0.04987618]
[1752245306775,0.33881908,117990.0,117980.0,0.04987618]
[1752245306979,0.33881908,117990.0,117980.0,0.03387618]
[1752245308348,0.83371455,117990.0,117980.0,0.01777618]
[1752245308733,0.33034387,117990.0,117980.0,0.03397618]
[1752245311425,0.02771754,117990.0,117980.0,0.22044823]
[1752245311626,0.00204984,117990.0,117980.0,0.85107522]
[1752245312031,0.01717616,118000.0,117990.0,0.73857673]
[1752245312228,0.13308,118000.0,117990.0,0.75435291]
[1752245312436,0.17744747,118010.0,118000.0,0.0166]
[1752245312605,0.16902414,118010.0,118000.0,0.04085075]
[1752245312820,0.3385013,118010.0,118000.0,0.03237618]
[1752245313023,0.16055036,118010.0,118000.0,0.03237618]
[1752245313280,0.16055036,118010.0,118000.0,0.2178677]
[1752245313499,0.33850123,118010.0,118000.0,0.04837618]
[1752245314099,0.16902407,118010.0,118000.0,0.04937618]
[1752245314409,0.16055036,118010.0,118000.0,0.04937618]
[1752245314614,0.32155432,118010.0,118000.0,0.04937618]
[1752245314944,0.32155432,118010.0,118000.0,0.03437618]
[1752245315147,0.18847432,118010.0,118000.0,0.03437618]
[1752245315405,0.32151432,118010.0,118000.0,0.01777618]
[1752245316182,0.33900279,118010.0,118000.0,0.01777618]
[1752245316565,0.33900279,118010.0,118000.0,0.03307618]
[1752245317388,0.33052922,118010.0,118000.0,0.03307618]
[1752245319922,0.04495919,118010.0,118000.0,0.04917618]
[1752245320067,0.35594963,118010.0,118000.0,0.04917618]
[1752245320263,0.16101163,118010.0,118000.0,0.74746231]
[1752245320506,0.16101163,118010.0,118000.0,0.75593652]
[1752245320721,0.16948498,118010.0,118000.0,0.74746231]
[1752245320948,0.18643218,118010.0,118000.0,0.56102201]
[1752245321138,0.19490603,118010.0,118000.0,0.56102201]
[1752245321343,0.35421628,118010.0,118000.0,0.56102201]
[1752245321546,0.33726965,118010.0,118000.0,0.04917618]
[1752245321721,0.32879616,118010.0,118000.0,0.04917618]
[1752245321929,0.31862883,118010.0,118000.0,0.04917618]
[1752245322730,0.31862883,118010.0,118000.0,0.03307618]
[1752245323527,0.33605238,118010.0,118000.0,0.03311796]
[1752245324616,0.32757867,118010.0,118000.0,0.03311796]
[1752245325903,0.86853821,118010.0,118000.0,0.01781796]
[1752245326160,0.86853821,118010.0,117980.0,0.002]
[1752245326161,0.52645597,117990.0,117980.0,0.002]
[1752245326487,1.27527888,117990.0,117980.0,0.002]
[1752245327111,1.14231888,117990.0,117980.0,0.002]
[1752245327335,1.27527888,117990.0,117980.0,0.002]
[1752245327913,1.27627888,117990.0,117980.0,0.002]
[1752245328328,0.7765459,117990.0,117980.0,0.002]
[1752245329001,1.14331888,117990.0,117980.0,0.002]
[1752245329206,0.6281859,117990.0,117980.0,0.002]
[1752245329450,0.67571597,117990.0,117980.0,0.002]
[1752245329807,0.67671597,117990.0,117980.0,0.002]
[1752245330012,1.19244895,117990.0,117980.0,0.002]
[1752245330217,1.05948895,117990.0,117980.0,0.002]
[1752245330430,1.19244895,117990.0,117980.0,0.002]
[1752245331876,1.27787888,117990.0,117980.0,0.002]
[1752245332087,0.7781459,117990.0,117980.0,0.002]
[1752245332290,1.27787888,117990.0,117980.0,0.002]
[1752245332536,5.21858757,117970.0,117960.0,0.002]
[1752245332772,0.55861919,117950.0,117940.0,0.00212]
[1752245332985,1.2767421,117950.0,117940.0,0.00212]
[1752245333410,0.69398947,117940.0,117930.0,0.0004]
[1752245333626,0.67470336,117940.0,117930.0,0.0004]
[1752245333850,0.6831821,117940.0,117930.0,0.00044988]
[1752245334073,0.18344912,117940.0,117930.0,0.00044988]
[1752245334288,0.31640912,117940.0,117930.0,0.00044988]
[1752245334889,0.64120912,117940.0,117930.0,0.00044988]
[1752245335880,0.65670912,117940.0,117930.0,0.00044988]
[1752245336257,0.64293384,117940.0,117930.0,0.00044988]
[1752245336475,0.66028332,117940.0,117930.0,0.00044988]
[1752245337460,1.1600163,117940.0,117930.0,0.00044988]
[1752245337926,1.0270563,117940.0,117930.0,0.00044988]
[1752245338133,0.66028332,117940.0,117930.0,0.00044988]
[1752245339115,0.52732332,117940.0,117930.0,0.00044988]
[1752245339283,0.66028332,117940.0,117930.0,0.00044988]
[1752245340803,0.17807159,117930.0,117920.0,0.0193]
[1752245340947,0.31103159,117930.0,117920.0,0.01944975]
[1752245341346,0.31951098,117930.0,117920.0,0.01944975]
[1752245341753,0.31103159,117930.0,117920.0,0.01944975]
[1752245342174,0.31103159,117930.0,117920.0,0.02044975]
[1752245342412,0.30255213,117930.0,117920.0,0.02044975]
[1752245343006,0.81808511,117930.0,117920.0,0.00414975]
[1752245343211,0.31835213,117930.0,117920.0,0.00414975]
[1752245344148,0.18539213,117930.0,117920.0,0.00414975]
[1752245344276,0.31835213,117930.0,117920.0,0.00414975]
[1752245345657,0.17808669,117920.0,117910.0,0.0165]
[1752245345857,0.03392279,117910.0,117900.0,0.1325]
[1752245346073,0.16688279,117910.0,117900.0,0.13299936]
[1752245346281,0.149921,117910.0,117900.0,0.30263464]
[1752245346499,0.01695985,117920.0,117910.0,0.20112006]
[1752245346628,0.15839974,117920.0,117910.0,0.0315]
[1752245346838,0.16687999,117920.0,117910.0,0.0315]
[1752245347037,0.51794458,117940.0,117910.0,0.21808261]
[1752245347247,0.37430617,117940.0,117920.0,0.72627994]
[1752245347464,0.5693205,117940.0,117920.0,0.68629962]
[1752245347720,0.1499182,117930.0,117920.0,0.18656693]
[1752245347920,0.13296,117930.0,117920.0,0.23512692]
[1752245348364,0.1414391,117930.0,117920.0,0.21816693]
[1752245348710,0.13296,117930.0,117920.0,0.23512678]
[1752245349045,0.38278556,117940.0,117920.0,0.20352678]
[1752245349244,0.38278556,117940.0,117930.0,0.0319]
[1752245349451,0.35734948,117940.0,117930.0,0.20149213]
[1752245349670,0.14143824,117940.0,117930.0,0.30388083]
[1752245350053,0.13296,117940.0,117930.0,0.32931834]
[1752245350229,0.002,117950.0,117940.0,0.20945656]
[1752245350434,0.17819901,117950.0,117940.0,0.20097775]
[1752245350646,0.51819901,117950.0,117940.0,0.20945656]
[1752245350850,0.50039327,117950.0,117940.0,0.03987888]
[1752245351000,0.5003932,117950.0,117940.0,0.20945663]
[1752245351198,0.48343759,117950.0,117940.0,0.22641418]
[1752245351432,0.50887129,117950.0,117940.0,0.03144984]
[1752245351640,0.67843466,117950.0,117940.0,0.03344984]
[1752245352027,0.5003932,117950.0,117940.0,0.03344984]
[1752245352227,0.49191532,117950.0,117940.0,0.03444984]
[1752245352431,0.68691267,117950.0,117940.0,0.03444984]
[1752245352797,0.5173493,117950.0,117940.0,0.03444984]
[1752245353404,0.50887114,117950.0,117940.0,0.03444984]